bitfinex/quotes_SOLUSD_20251031
["timestamp","ask_amount","ask_price","bid_price","bid_amount"]
[1761936117644,24.30063636,186.22,186.15,8.38529601]
[1761936117645,8.38529601,186.21,186.16,8.38529601]
[1761936117859,9.04529601,186.22,186.17,8.38529601]
[1761936118058,0.66,186.22,186.18,8.38529601]
[1761936118565,8.38529601,186.25,186.2,8.38529601]
[1761936118762,20.592,186.22,186.19,8.38529601]
[1761936118976,20.592,186.22,186.2,8.38529601]
[1761936119350,20.592,186.22,186.19,8.38529601]
[1761936119657,6.02946526,186.24,186.2,1.99999999]
[1761936119974,8.38529601,186.22,186.17,10.385296]
[1761936120176,20.592,186.21,186.17,1.99999999]
[1761936120378,20.592,186.15,186.1,1.99999999]
[1761936120580,28.97729601,186.15,186.11,1.99999999]
[1761936120753,8.38529601,186.18,186.12,8.38529601]
[1761936120953,20.592,186.18,186.13,8.38529601]
[1761936121275,20.592,186.18,186.12,9.05529601]
[1761936121276,21.252,186.18,186.12,9.05529601]
[1761936121454,8.38529601,186.17,186.13,1.99999999]
[1761936122083,29.63729601,186.18,186.13,1.99999999]
[1761936122259,20.592,186.18,186.14,9.05529601]
[1761936122454,20.592,186.18,186.15,8.38529601]
[1761936122773,20.592,186.21,186.16,10.385296]
[1761936122947,20.592,186.19,186.17,0.67]
[1761936123153,8.38529601,186.22,186.17,0.67]
[1761936123379,0.66,186.27,186.2,8.38529601]
[1761936123579,5.36912751,186.25,186.21,1.99999999]
[1761936123785,28.97729601,186.26,186.21,1.99999999]
[1761936124086,29.63729601,186.26,186.21,11.055296]
[1761936124295,14.07928339,186.3,186.22,2.66999999]
[1761936124454,28.97729601,186.27,186.22,10.385296]
[1761936124655,8.38529601,186.27,186.23,1.99999999]
[1761936124854,20.592,186.26,186.23,1.99999999]
[1761936125452,9.04529601,186.25,186.21,1.99999999]
[1761936125655,8.38529601,186.25,186.21,1.99999999]
[1761936125852,14.41442967,186.25,186.2,10.385296]
[1761936126078,14.41442967,186.25,186.21,1.99999999]
[1761936126287,8.38529601,186.22,186.18,1.99999999]
[1761936126486,20.592,186.22,186.19,11.055296]
[1761936126651,8.38529601,186.26,186.19,2.66999999]
[1761936126976,5.36876677,186.27,186.23,1.99999999]
[1761936126977,34.34606278,186.27,186.23,1.99999999]
[1761936127177,35.00606278,186.27,186.23,1.99999999]
[1761936127379,9.04529601,186.26,186.21,1.99999999]
[1761936127592,8.38529601,186.26,186.23,1.99999999]
[1761936127774,13.75436279,186.26,186.21,1.99999999]
[1761936127958,0.66,186.25,186.22,1.99999999]
[1761936128275,13.75436279,186.26,186.2,9.05529601]
[1761936128276,13.75436279,186.26,186.23,1.99999999]
[1761936129059,14.41436279,186.26,186.23,1.99999999]
[1761936129397,13.75436279,186.26,186.23,1.99999999]
[1761936130770,13.75436279,186.26,186.21,63.79999999]
[1761936130979,5.36906678,186.26,186.23,1.99999999]
[1761936131190,13.75436279,186.26,186.23,1.99999999]
[1761936131388,25.96061579,186.27,186.23,1.99999999]
[1761936131573,20.592,186.27,186.24,0.67]
[1761936131885,20.592,186.27,186.23,10.385296]
[1761936132085,0.66,186.26,186.23,1.99999999]
[1761936132290,9.04529601,186.26,186.23,1.99999999]
[1761936132995,14.41442352,186.25,186.21,63.79999999]
[1761936133198,14.41442352,186.25,186.23,1.99999999]
[1761936133378,13.75442352,186.25,186.23,1.99999999]
[1761936133571,5.36912751,186.25,186.23,1.99999999]
[1761936133984,25.96082184,186.27,186.23,1.99999999]
[1761936134384,8.38529601,186.26,186.23,1.99999999]
[1761936134702,35.00611785,186.27,186.23,1.99999999]
[1761936135774,8.38529601,186.25,186.21,63.79999999]
[1761936135980,8.38529601,186.24,186.21,63.79999999]
[1761936136190,8.38529601,186.22,186.19,1.99999999]
[1761936136689,8.38529601,186.22,186.17,0.67]
[1761936136690,8.38529601,186.23,186.2,1.99999999]
[1761936136883,9.04529601,186.23,186.2,1.99999999]
[1761936137300,14.4152727,186.23,186.2,1.99999999]
[1761936137481,6.02997669,186.23,186.2,1.99999999]
[1761936137679,25.9614266,186.24,186.2,10.385296]
[1761936137996,35.00672261,186.24,186.2,1.99999999]
[1761936138188,34.34672261,186.24,186.2,2.68999999]
[1761936138391,25.9614266,186.24,186.2,2.68999999]
[1761936138576,25.9614266,186.24,186.2,11.075296]
[1761936138778,26.6314266,186.24,186.2,1.99999999]
[1761936139100,0.67,186.23,186.2,1.99999999]
[1761936139394,9.05529601,186.23,186.2,1.99999999]
[1761936139583,0.67,186.23,186.2,1.99999999]
[1761936139888,8.38529601,186.23,186.2,1.99999999]
[1761936140076,34.34672261,186.24,186.2,1.99999999]
[1761936140275,26.6314266,186.24,186.19,1.99999999]
[1761936140475,20.592,186.24,186.21,1.99999999]
[1761936140890,26.63151024,186.24,186.21,1.99999999]
[1761936141373,20.592,186.24,186.21,1.99999999]
[1761936141567,20.592,186.24,186.21,10.385296]
[1761936141774,5.36855102,186.27,186.23,1.99999999]
[1761936142278,6.03855102,186.27,186.23,1.99999999]
[1761936142489,14.42384703,186.27,186.23,1.99999999]
[1761936142792,5.36855102,186.27,186.23,1.99999999]
[1761936143003,25.96029315,186.28,186.24,0.69]
[1761936143385,0.67,186.27,186.23,1.99999999]
[1761936143577,8.38529601,186.25,186.21,1.99999999]
[1761936143781,0.42648471,186.26,186.22,1.99999999]
[1761936143782,8.38529601,186.24,186.22,1.99999999]
[1761936144000,9.05529601,186.25,186.22,1.99999999]
[1761936144178,9.05529601,186.25,186.21,1.99999999]
[1761936144507,9.05529601,186.25,186.22,1.99999999]
[1761936145386,8.38529601,186.24,186.22,1.99999999]
[1761936146103,6.03941398,186.25,186.22,1.99999999]
[1761936146104,14.42470999,186.25,186.22,1.99999999]
[1761936146993,8.38529601,186.23,186.19,1.99999999]
[1761936147497,8.38529601,186.23,186.21,1.99999999]
[1761936147700,13.7550508,186.23,186.21,1.99999999]
[1761936149114,14.44475995,186.24,186.21,1.99999999]
[1761936149790,13.75475995,186.24,186.21,1.99999999]
[1761936149985,8.38529601,186.24,186.21,1.99999999]
[1761936150187,1.11648471,186.26,186.21,10.385296]
[1761936150188,8.38529601,186.26,186.21,10.385296]
[1761936150386,25.96062411,186.27,186.23,8.38529601]
[1761936150784,20.592,186.25,186.24,0.71]
[1761936151488,20.592,186.25,186.23,8.38529601]
[1761936152208,20.592,186.25,186.23,9.09529601]
[1761936152583,20.592,186.25,186.23,8.38529601]
[1761936152881,20.592,186.26,186.22,10.385296]
[1761936153077,20.592,186.25,186.22,1.99999999]
[1761936153305,20.592,186.25,186.22,11.095296]
[1761936153690,20.592,186.27,186.23,11.095296]
[1761936153890,5.36774015,186.3,186.26,8.38529601]
[1761936154210,20.592,186.3,186.28,8.38529601]
[1761936154383,0.69,186.35,186.29,10.385296]
[1761936154584,0.69,186.35,186.32,8.38529601]
[1761936154794,20.592,186.35,186.33,8.38529601]
[1761936155131,6.05546591,186.38,186.33,8.38529601]
[1761936155287,20.592,186.35,186.33,8.38529601]
[1761936155702,0.69,186.41,186.34,0.71]
[1761936155907,8.38529601,186.39,186.35,1.99999999]
[1761936156108,20.592,186.38,186.35,1.99999999]
[1761936156407,20.592,186.38,186.35,10.385296]
[1761936156607,0.69,186.39,186.35,10.385296]
[1761936157106,8.38529601,186.41,186.36,8.38529601]
[1761936157412,8.38529601,186.41,186.36,9.09529601]
[1761936157413,20.592,186.38,186.36,9.09529601]
[1761936157712,20.592,186.39,186.37,9.09529601]
[1761936158014,20.592,186.39,186.37,8.38529601]
[1761936158394,20.592,186.39,186.36,10.385296]
[1761936158800,8.38529601,186.41,186.38,1.99999999]
[1761936158996,0.69,186.41,186.38,1.99999999]
[1761936159199,0.69,186.4,186.37,1.99999999]
[1761936159711,28.97729601,186.38,186.34,1.99999999]
[1761936159918,20.592,186.38,186.35,1.99999999]
[1761936160290,20.592,186.38,186.35,11.095296]
[1761936160696,222.58529601,186.55,186.29,43.8007633]
[1761936160697,8.38529601,186.44,186.39,1.99999999]
[1761936160905,28.97729601,186.44,186.39,10.385296]
[1761936161098,6.05396471,186.43,186.39,10.385296]
[1761936161393,6.05396471,186.43,186.39,8.38529601]
[1761936161595,6.05396471,186.43,186.39,10.385296]
[1761936161806,6.05396471,186.43,186.39,8.38529601]
[1761936162007,0.69,186.45,186.4,8.38529601]
[1761936162189,14.4389395,186.45,186.41,1.99999999]
[1761936162384,8.38529601,186.44,186.39,10.385296]
[1761936162708,9.07529601,186.44,186.39,10.385296]
[1761936162888,9.07529601,186.44,186.41,1.99999999]
[1761936163087,9.07529601,186.44,186.39,10.385296]
[1761936163289,6.05394357,186.43,186.4,1.99999999]
[1761936163712,6.05394357,186.43,186.39,10.385296]
[1761936163902,6.05394357,186.43,186.4,1.99999999]
[1761936164089,9.07529601,186.42,186.38,1.99999999]
[1761936164415,8.38529601,186.42,186.39,1.99999999]
[1761936164600,13.74923958,186.43,186.39,1.99999999]
[1761936164788,14.43923958,186.43,186.39,1.99999999]
[1761936165189,6.05394357,186.43,186.39,1.99999999]
[1761936165406,6.05394357,186.43,186.39,10.385296]
[1761936166521,14.43923958,186.43,186.39,1.99999999]
[1761936166699,5.36394357,186.43,186.39,2.70999999]
[1761936166905,6.05394357,186.43,186.4,8.38529601]
[1761936167104,6.05394357,186.43,186.4,1.99999999]
[1761936167705,6.05394357,186.43,186.41,1.99999999]
[1761936168225,6.05394357,186.43,186.37,6.07565897]
[1761936168226,6.05394357,186.43,186.4,1.99999999]
[1761936168600,6.05394357,186.43,186.41,1.99999999]
[1761936169014,0.69,186.43,186.41,1.99999999]
[1761936169206,0.1,186.46,186.45,1.99999999]
[1761936169527,0.1,186.46,186.45,8.2097417]
[1761936170107,0.1,186.46,186.45,1.99999999]
[1761936170306,0.1,186.46,186.43,5.49974171]
[1761936170307,6.15314764,186.46,186.43,1.99999999]
[1761936170518,6.15314764,186.46,186.44,1.99999999]
[1761936170838,6.15314764,186.46,186.36,34.00686924]
[1761936170839,5.36365586,186.44,186.43,1.99999999]
[1761936171125,5.49974171,186.45,186.43,1.99999999]
[1761936171325,6.05342963,186.45,186.43,1.99999999]
[1761936172123,11.55317134,186.45,186.43,1.99999999]
[1761936172508,0.1,186.46,186.43,1.99999999]
[1761936172715,0.1,186.46,186.45,7.4997417]
[1761936173227,0.1,186.46,186.45,8.2097417]
[1761936173433,0.1,186.46,186.45,4.8679209]
[1761936173933,0.79,186.46,186.45,1.99999999]
[1761936174138,0.1,186.46,186.45,1.99999999]
[1761936174712,0.1,186.46,186.45,4.1579209]
[1761936175141,0.1,186.46,186.45,1.99999999]
[1761936176244,0.1,186.46,186.45,4.1579209]
[1761936178244,0.1,186.46,186.45,1.99999999]
[1761936181051,0.1,186.46,186.45,8.07336818]
[1761936181223,0.1,186.46,186.45,10.23128909]
[1761936182440,0.1,186.46,186.45,72.03128909]
[1761936182751,0.1,186.49,186.48,33.38160454]
[1761936182955,0.1,186.5,186.48,33.38160454]
[1761936183121,0.1,186.5,186.49,2.86792091]
[1761936184055,6.03934815,186.59,186.55,1.99999999]
[1761936184261,0.68,186.59,186.57,2.15792091]
[1761936184550,20.592,186.58,186.57,2.15792091]
[1761936185049,0.68,186.58,186.55,4.1579209]
[1761936185458,26.63086372,186.61,186.56,5.48990317]
[1761936185766,6.03820668,186.63,186.59,5.48990317]
[1761936186045,26.63020668,186.63,186.59,5.48990317]
[1761936186251,6.03820668,186.63,186.59,5.48990317]
[1761936186449,0.68,186.62,186.59,5.48990317]
[1761936186653,9.78882769,186.67,186.6,7.48990316]
[1761936186654,0.68,186.66,186.6,7.48990316]
[1761936186835,6.03757929,186.66,186.63,1.99999999]
[1761936187430,6.03757929,186.66,186.6,0.71]
[1761936187431,20.592,186.64,186.6,7.48990316]
[1761936187637,20.592,186.63,186.6,7.48990316]
[1761936187831,20.592,186.63,186.61,1.99999999]
[1761936188033,0.68,186.62,186.58,1.99999999]
[1761936188259,5.48990317,186.6,186.58,1.99999999]
[1761936188431,10.84924718,186.59,186.55,1.99999999]
[1761936188770,26.08190317,186.56,186.51,1.99999999]
[1761936189056,5.48990317,186.55,186.53,1.99999999]
[1761936189256,6.16990317,186.55,186.52,1.99999999]
[1761936189843,11.5306779,186.55,186.52,1.99999999]
[1761936190141,6.16990317,186.54,186.51,1.99999999]
[1761936190450,5.48990317,186.52,186.48,1.99999999]
[1761936190666,5.48990317,186.52,186.51,1.99999999]
[1761936190958,0.68,186.53,186.48,1.99999999]
[1761936191162,0.68,186.53,186.49,1.99999999]
[1761936191163,5.48990317,186.51,186.49,1.99999999]
[1761936191366,5.48990317,186.51,186.47,1.99999999]
[1761936191579,0.68,186.51,186.47,1.99999999]
[1761936191738,5.48990317,186.5,186.49,1.99999999]
[1761936191937,6.04168547,186.51,186.49,1.99999999]
[1761936192143,6.04168547,186.51,186.48,1.99999999]
[1761936192641,0.68,186.5,186.46,1.99999999]
[1761936192839,0.68,186.5,186.48,1.99999999]
[1761936193062,0.68,186.5,186.46,1.99999999]
[1761936193377,6.16990317,186.5,186.48,1.99999999]
[1761936193531,5.48990317,186.49,186.45,1.99999999]
[1761936193864,5.36336819,186.45,186.41,1.99999999]
[1761936194063,10.85327136,186.45,186.41,1.99999999]
[1761936194238,10.85327136,186.45,186.42,1.99999999]
[1761936194559,10.85275163,186.47,186.44,1.99999999]
[1761936195044,11.53275163,186.47,186.43,1.99999999]
[1761936195243,11.53275163,186.47,186.37,8.96024849]
[1761936195244,6.16990317,186.46,186.42,1.99999999]
[1761936195548,5.48990317,186.43,186.42,1.99999999]
[1761936195936,10.85384674,186.43,186.42,1.99999999]
[1761936196139,5.48990317,186.43,186.42,1.99999999]
[1761936196342,0.68,186.43,186.42,1.99999999]
[1761936196558,11.53384674,186.43,186.42,1.99999999]
[1761936197268,10.85384674,186.43,186.42,1.99999999]
[1761936197866,5.48990317,186.43,186.42,1.99999999]
[1761936198255,10.85384674,186.43,186.42,1.99999999]
[1761936198444,10.85384674,186.43,186.38,1.99999999]
[1761936198646,5.48990317,186.4,186.37,8.96024849]
[1761936198849,5.48990317,186.38,186.37,8.96024849]
[1761936199950,6.15990317,186.38,186.37,8.96024849]
[1761936200352,11.52528572,186.38,186.37,8.96024849]
[1761936200658,32.11728572,186.38,186.37,8.96024849]
[1761936200968,26.08190317,186.38,186.37,8.96024849]
[1761936201177,20.592,186.4,186.37,10.96024848]
[1761936201466,26.75190317,186.4,186.37,10.96024848]
[1761936202158,5.48990317,186.38,186.37,8.96024849]
[1761936202483,10.85528572,186.38,186.37,8.96024849]
[1761936202655,11.52528572,186.38,186.37,8.96024849]
[1761936204968,10.85528572,186.38,186.37,8.96024849]
[1761936205274,11.53528572,186.38,186.37,8.96024849]
[1761936206574,20.592,186.38,186.37,8.96024849]
[1761936206784,5.48990317,186.38,186.37,8.96024849]
[1761936208164,26.08190317,186.38,186.37,8.96024849]
[1761936208359,31.44728572,186.38,186.37,8.96024849]
[1761936209578,32.12728572,186.38,186.37,8.96024849]
[1761936210450,32.55377043,186.38,186.37,8.96024849]
[1761936211485,21.75059812,186.38,186.37,8.96024849]
[1761936214390,20.592,186.35,186.31,0.2]
[1761936214677,5.48990317,186.32,186.31,0.2]
[1761936215083,6.16990317,186.32,186.31,0.2]
[1761936216173,32.55549822,186.32,186.31,0.2]
[1761936216370,20.592,186.29,186.22,1.99999999]
[1761936216562,5.48990317,186.23,186.2,2.68999999]
[1761936216761,5.48990317,186.24,186.23,1.99999999]
[1761936217862,5.48990317,186.24,186.22,0.69]
[1761936218262,5.48990317,186.24,186.23,1.99999999]
[1761936220190,5.48990317,186.24,186.22,0.69]
[1761936220368,10.85931897,186.24,186.23,1.99999999]
[1761936220580,11.53931897,186.24,186.19,2.68999999]
[1761936220771,5.48990317,186.22,186.2,1.99999999]
[1761936220973,5.48990317,186.22,186.2,0.69]
[1761936221176,5.48990317,186.23,186.21,2.68999999]
[1761936221971,5.48990317,186.23,186.21,1.99999999]
[1761936222175,5.48990317,186.23,186.22,0.69]
[1761936223375,5.48990317,186.23,186.22,2.68999999]
[1761936224109,5.36861239,186.27,186.22,2.68999999]
[1761936224313,25.96061239,186.27,186.23,1.99999999]
[1761936224587,5.48990317,186.24,186.23,2.68999999]
[1761936224988,5.36827247,186.28,186.23,2.68999999]
[1761936225291,5.48990317,186.24,186.23,1.99999999]
[1761936226070,25.96027247,186.28,186.24,1.99999999]
[1761936226267,5.48990317,186.25,186.24,1.99999999]
[1761936227292,2.16436969,186.25,186.24,1.99999999]
[1761936228294,2.16436969,186.25,186.21,0.69]
[1761936228295,7.53362903,186.25,186.23,1.99999999]
[1761936228595,5.36925934,186.25,186.23,1.99999999]
[1761936228796,34.01265707,186.28,186.22,1.99999999]
[1761936228797,2.16436969,186.24,186.22,1.99999999]
[1761936228970,0.68,186.32,186.24,1.99999999]
[1761936229298,0.68,186.32,186.27,1.99999999]
[1761936229471,3.37943056,186.3,186.28,1.99999999]
[1761936230373,8.74656114,186.32,186.29,0.69]
[1761936230583,8.74656114,186.32,186.29,2.68999999]
[1761936230785,5.36713058,186.32,186.29,2.68999999]
[1761936231074,20.592,186.31,186.3,0.69]
[1761936231281,8.36531039,186.33,186.31,1.99999999]
[1761936231675,20.592,186.35,186.31,1.99999999]
[1761936231676,25.95827433,186.35,186.31,1.99999999]
[1761936231913,28.95731039,186.33,186.31,1.99999999]
[1761936232078,20.592,186.33,186.31,2.68999999]
[1761936232287,8.36531039,186.35,186.32,2.68999999]
[1761936232797,25.95801309,186.36,186.32,2.68999999]
[1761936233097,8.36531039,186.35,186.32,2.68999999]
[1761936233482,26.63801309,186.36,186.32,1.99999999]
[1761936233794,8.36531039,186.35,186.32,1.99999999]
[1761936233999,8.36531039,186.35,186.32,2.68999999]
[1761936234490,8.36531039,186.34,186.32,1.99999999]
[1761936234696,8.36531039,186.33,186.31,1.99999999]
[1761936235489,8.36531039,186.32,186.31,1.99999999]
[1761936235685,9.07531039,186.32,186.29,1.99999999]
[1761936235886,8.36531039,186.31,186.29,1.99999999]
[1761936236081,8.36531039,186.3,186.28,1.99999999]
[1761936236287,20.592,186.33,186.28,1.99999999]
[1761936236288,8.36531039,186.29,186.28,1.99999999]
[1761936236493,8.36531039,186.3,186.28,1.99999999]
[1761936236983,8.36531039,186.3,186.29,1.99999999]
[1761936237183,9.07531039,186.3,186.28,1.99999999]
[1761936237593,8.36531039,186.3,186.28,1.99999999]
[1761936238876,0.14216157,186.25,186.18,0.2]
[1761936239109,8.36531039,186.19,186.18,0.2]
[1761936239481,0.14216157,186.22,186.18,0.87]
[1761936239687,0.14216157,186.22,186.18,0.2]
[1761936239688,8.36531039,186.19,186.18,0.2]
[1761936240787,28.95731039,186.2,186.18,0.87]
[1761936241181,8.36531039,186.2,186.19,0.67]
[1761936241588,10.9253124,186.24,186.18,0.2]
[1761936241589,0.28432314,186.24,186.18,0.2]
[1761936241795,28.95731039,186.23,186.19,0.67]
[1761936242214,8.36531039,186.22,186.19,0.67]
[1761936243121,8.36531039,186.2,186.18,0.2]
[1761936243316,8.36531039,186.19,186.18,0.87]
[1761936243616,8.36531039,186.19,186.18,0.2]
[1761936244197,0.71,186.21,186.18,0.2]
[1761936244422,20.592,186.19,186.18,0.2]
[1761936244607,28.95731039,186.19,186.18,0.2]
[1761936244789,0.42648471,186.22,186.18,0.2]
[1761936244986,57.27407076,186.36,186.18,0.2]
[1761936244987,13.43115176,186.33,186.21,8.36531039]
[1761936245187,0.71,186.47,186.35,20.592]
[1761936245386,0.71,186.47,186.32,8.36531039]
[1761936245387,0.71,186.47,186.39,20.592]
[1761936245620,0.71,186.47,186.35,26.82617385]
[1761936245798,8.36531039,186.42,186.37,20.592]
[1761936246003,8.36531039,186.39,186.34,9.03531039]
[1761936246193,8.36531039,186.39,186.37,20.592]
[1761936246588,0.71,186.42,186.33,9.03531039]
[1761936246813,0.71,186.42,186.36,20.592]
[1761936247413,8.36531039,186.41,186.35,0.67]
[1761936248229,0.71,186.42,186.35,0.67]
[1761936248392,8.36531039,186.4,186.35,0.67]
[1761936248794,8.36531039,186.38,186.26,13.56392606]
[1761936249009,8.36531039,186.37,186.32,0.67]
[1761936249211,10.60139735,186.38,186.32,0.67]
[1761936249519,10.60139735,186.38,186.33,8.36531039]
[1761936249706,10.60139735,186.38,186.34,8.36531039]
[1761936250231,10.60139735,186.38,186.34,0.67]
[1761936250425,10.60139735,186.38,186.35,0.67]
[1761936250601,10.60139735,186.38,186.35,9.03531039]
[1761936251109,10.60139735,186.38,186.36,0.67]
[1761936251505,10.60139735,186.38,186.37,8.36531039]
[1761936251906,10.60139735,186.38,186.37,9.03531039]
[1761936252607,10.60139735,186.38,186.37,0.67]
[1761936253006,10.60139735,186.38,186.37,9.03531039]
[1761936253203,10.60139735,186.38,186.37,14.40098083]
[1761936253525,10.60139735,186.38,186.37,10.45882769]
[1761936253726,10.60139735,186.38,186.37,24.18980852]
[1761936255508,10.10139735,186.38,186.37,24.18980852]
[1761936256322,10.10139735,186.38,186.37,6.03567044]
[1761936256624,10.10139735,186.38,186.37,8.36531039]
[1761936256834,10.10139735,186.38,186.34,0.67]
[1761936257124,9.07531039,186.37,186.31,14.40270834]
[1761936257331,9.07531039,186.37,186.31,9.03531039]
[1761936257504,9.07531039,186.37,186.31,14.40268813]
[1761936257699,14.44102541,186.37,186.31,9.03531039]
[1761936257902,14.44102541,186.37,186.32,3.56340691]
[1761936257903,8.36531039,186.36,186.32,3.56340691]
[1761936258199,8.36531039,186.36,186.3,13.73284957]
[1761936258406,8.36531039,186.36,186.3,14.42284957]
[1761936259108,9.07531039,186.37,186.31,17.29642839]
[1761936259503,9.07531039,186.37,186.31,8.36531039]
[1761936259725,0.71,186.37,186.32,8.36531039]
[1761936259921,9.07531039,186.37,186.31,8.36531039]
[1761936260307,10.10139735,186.38,186.37,9.78882769]
[1761936260504,10.10139735,186.38,186.37,21.71101847]
[1761936260702,10.10139735,186.38,186.37,22.40101847]
[1761936260920,10.10139735,186.38,186.37,12.61219078]
[1761936261119,10.10139735,186.38,186.37,28.19317362]
[1761936261326,21.282,186.48,186.38,9.78882769]
[1761936261527,21.282,186.48,186.44,8.36531039]
[1761936261829,21.282,186.48,186.38,9.78882769]
[1761936261830,0.69,186.47,186.43,8.36531039]
[1761936262025,8.36531039,186.46,186.37,18.77984654]
[1761936262227,0.69,186.47,186.39,8.36531039]
[1761936262433,29.64731039,186.46,186.4,11.91992222]
[1761936262634,29.64731039,186.46,186.41,3.55443143]
[1761936262811,0.69,186.45,186.4,8.36531039]
[1761936263906,0.69,186.45,186.37,18.77984654]
[1761936264103,0.69,186.51,186.44,8.36531039]
[1761936264316,0.69,186.51,186.39,9.78882769]
[1761936264521,20.592,186.48,186.45,8.36531039]
[1761936264728,21.282,186.48,186.45,8.36531039]
[1761936265120,0.69,186.48,186.46,8.36531039]
[1761936267120,0.69,186.48,186.41,9.78882769]
[1761936267431,6.05257883,186.48,186.43,8.36531039]
[1761936267638,20.692,186.52,186.4,5.36480686]
[1761936267811,0.1,186.57,186.51,16.73062078]
[1761936268138,0.81,186.69,186.6,20.592]
[1761936268340,0.81,186.69,186.61,3.54949835]
[1761936268640,0.81,186.69,186.68,8.36531039]
[1761936268840,0.81,186.69,186.62,13.33832604]
[1761936268841,0.1,186.69,186.64,20.592]
[1761936269012,0.1,186.69,186.68,8.36531039]
[1761936269340,0.1,186.69,186.67,5.35695949]
[1761936269511,0.1,186.69,186.68,8.36531039]
[1761936270010,0.1,186.69,186.62,21.01848471]
[1761936270228,0.1,186.69,186.68,8.36531039]
[1761936270446,0.1,186.69,186.68,11.88415014]
[1761936271217,0.1,186.69,186.68,35.17814845]
[1761936271630,0.1,186.69,186.68,35.60463316]
[1761936272151,0.1,186.69,186.68,18.44752767]
[1761936272357,0.1,186.69,186.68,26.81283806]
[1761936273049,0.1,186.69,186.68,11.66725014]
[1761936273430,0.1,186.69,186.68,17.02401037]
[1761936274025,0.1,186.69,186.68,11.66725014]
[1761936274544,0.1,186.69,186.68,17.02401037]
[1761936275126,0.1,186.69,186.68,3.30193975]
[1761936275326,0.81,186.69,186.68,3.30193975]
[1761936275646,0.1,186.69,186.68,3.30193975]
[1761936275943,0.1,186.69,186.68,11.66725014]
[1761936276121,0.1,186.69,186.68,17.02401037]
[1761936276918,0.1,186.69,186.68,11.66725014]
[1761936277647,0.1,186.69,186.68,17.02401037]
[1761936277838,0.1,186.69,186.68,21.47791121]
[1761936278015,0.1,186.69,186.68,17.02401037]
[1761936279033,0.1,186.69,186.68,11.66725014]
[1761936280450,0.1,186.69,186.68,17.02401037]
[1761936280938,0.1,186.69,186.68,11.66725014]
[1761936281519,0.1,186.69,186.68,17.02401037]
[1761936281717,0.81,186.69,186.68,3.30193975]
[1761936282019,0.1,186.69,186.68,11.66725014]
[1761936282332,0.1,186.69,186.68,17.02401037]
[1761936282533,0.1,186.69,186.68,18.44752767]
[1761936282722,0.1,186.69,186.68,26.81283806]
[1761936283423,0.1,186.69,186.68,31.2667389]
[1761936283624,0.1,186.69,186.68,26.81283806]
[1761936283818,0.1,186.69,186.68,31.2667389]
[1761936284232,0.1,186.69,186.68,26.81283806]
[1761936284470,0.1,186.69,186.68,35.17814845]
[1761936284627,25.94562178,186.79,186.69,9.78882769]
[1761936284839,0.71,186.77,186.74,8.36531039]
[1761936285022,0.71,186.77,186.75,3.30193975]
[1761936285221,0.71,186.77,186.74,8.36531039]
[1761936285440,0.71,186.77,186.75,3.47501302]
[1761936285626,0.71,186.77,186.73,8.36531039]
[1761936285934,0.71,186.77,186.74,11.84027319]
[1761936286127,0.71,186.77,186.75,3.4749628]
[1761936286338,0.71,186.77,186.76,3.4749628]
[1761936286737,0.71,186.77,186.76,11.84027319]
[1761936286932,0.71,186.79,186.76,11.84027319]
[1761936287149,0.71,186.79,186.77,3.4749628]
[1761936287324,0.71,186.79,186.73,5.35519498]
[1761936287531,0.71,186.79,186.75,8.36531039]
[1761936287762,0.71,186.79,186.76,3.4776226]
[1761936287932,0.71,186.79,186.75,8.36531039]
[1761936289261,0.71,186.79,186.76,3.48486026]
[1761936289463,0.71,186.79,186.75,8.36531039]
[1761936289767,0.71,186.79,186.76,3.48485693]
[1761936289952,0.71,186.79,186.77,8.36531039]
[1761936290150,0.71,186.79,186.76,8.36531039]
[1761936290451,8.36531039,186.77,186.7,4.34513276]
[1761936290657,8.36531039,186.76,186.71,3.48537599]
[1761936290857,0.71,186.78,186.75,8.36531039]
[1761936291363,0.71,186.78,186.76,5.47713507]
[1761936291560,0.1,186.8,186.78,5.35389227]
[1761936291757,0.1,186.8,186.79,5.47713507]
[1761936292067,0.1,186.8,186.75,5.47713507]
[1761936292068,0.71,186.79,186.75,5.47713507]
[1761936292451,0.71,186.79,186.71,18.74564832]
[1761936292452,5.47713507,186.78,186.72,5.47713507]